[Event "Early-Titled-Tuesday-Blitz-October-03-2023"]
[Site "Chess.com"]
[Date "2023.10.03"]
[Round "4"]
[White "santosalberto1987"]
[Black "AdvanceGuard4"]
[Result "0-1"]
[WhiteElo "2481"]
[BlackElo "2652"]
[TimeControl "180+1"]
[EndTime "8:38:32 PDT"]
[Termination "AdvanceGuard4 won by resignation"]

1. e4 {[%clk 0:03:00.9]} 1... c6 {[%clk 0:02:59.1]} 2. c4 {[%clk 0:03:00.8]}
2... d5 {[%clk 0:03:00]} 3. exd5 {[%clk 0:03:00.6]} 3... cxd5 {[%clk 0:03:00.9]}
4. cxd5 {[%clk 0:03:01]} 4... Nf6 {[%clk 0:03:01.5]} 5. Qa4+ {[%clk 0:03:01.3]}
5... Nbd7 {[%clk 0:03:02.1]} 6. Nc3 {[%clk 0:03:00.9]} 6... g6 {[%clk
0:03:02.5]} 7. Bc4 {[%clk 0:02:59.7]} 7... Bg7 {[%clk 0:03:02.9]} 8. Nf3 {[%clk
0:02:59.6]} 8... O-O {[%clk 0:03:03.1]} 9. d3 {[%clk 0:03:00]} 9... a6 {[%clk
0:03:03.7]} 10. Qa3 {[%clk 0:02:59.6]} 10... b6 {[%clk 0:03:04.4]} 11. O-O
{[%clk 0:02:55.9]} 11... Bb7 {[%clk 0:03:04.9]} 12. Re1 {[%clk 0:02:54.9]} 12...
Re8 {[%clk 0:03:04.5]} 13. h3 {[%clk 0:02:25]} 13... Rc8 {[%clk 0:03:02]} 14.
Be3 {[%clk 0:02:20.9]} 14... b5 {[%clk 0:02:58.9]} 15. Bb3 {[%clk 0:02:20.9]}
15... Nb6 {[%clk 0:02:59]} 16. d6 {[%clk 0:02:21]} 16... e6 {[%clk 0:02:55.7]}
17. Qb4 {[%clk 0:02:08.9]} 17... Bxf3 {[%clk 0:02:52.7]} 18. gxf3 {[%clk
0:02:08.6]} 18... Bf8 {[%clk 0:02:44.1]} 19. Ne4 {[%clk 0:02:08]} 19... Nxe4
{[%clk 0:02:28.4]} 20. fxe4 {[%clk 0:02:00.3]} 20... Bxd6 {[%clk 0:02:28]} 21.
Qd4 {[%clk 0:02:00.1]} 21... Bc5 {[%clk 0:01:56.6]} 22. Qxd8 {[%clk 0:01:58.6]}
22... Rexd8 {[%clk 0:01:57.5]} 23. Bxc5 {[%clk 0:01:47.9]} 23... Rxc5 {[%clk
0:01:58.4]} 24. Red1 {[%clk 0:01:48.4]} 24... e5 {[%clk 0:01:52.5]} 25. Kf1
{[%clk 0:01:47.6]} 25... Kg7 {[%clk 0:01:50.1]} 26. Ke2 {[%clk 0:01:47.5]} 26...
a5 {[%clk 0:01:49.8]} 27. Rac1 {[%clk 0:01:47.1]} 27... Rdc8 {[%clk 0:01:49.7]}
28. Rxc5 {[%clk 0:01:42.8]} 28... Rxc5 {[%clk 0:01:50.6]} 29. a3 {[%clk
0:01:41.9]} 29... Nd7 {[%clk 0:01:38.5]} 30. Kd2 {[%clk 0:01:37.9]} 30... Nf6
{[%clk 0:01:36.6]} 31. Rc1 {[%clk 0:01:34.5]} 31... Rxc1 {[%clk 0:01:35.6]} 32.
Kxc1 {[%clk 0:01:35.4]} 32... Nh5 {[%clk 0:01:36.1]} 33. Bd5 {[%clk 0:01:06.6]}
33... Nf4 {[%clk 0:01:30.8]} 34. Bc6 {[%clk 0:01:06.7]} 34... Nxd3+ {[%clk
0:01:29.6]} 35. Kd2 {[%clk 0:01:04.7]} 35... Nxf2 {[%clk 0:01:30.5]} 36. Ke2
{[%clk 0:00:58.2]} 36... Nxh3 {[%clk 0:01:28.2]} 37. Bxb5 {[%clk 0:00:58.1]}
37... f5 {[%clk 0:01:28.9]} 38. Bc6 {[%clk 0:00:51.5]} 38... Kf6 {[%clk
0:01:27.1]} 39. b4 {[%clk 0:00:51]} 39... axb4 {[%clk 0:01:28]} 40. axb4 {[%clk
0:00:51.7]} 40... Nf4+ {[%clk 0:01:28.2]} 41. Kf3 {[%clk 0:00:49.9]} 41... Ne6
{[%clk 0:01:26.2]} 42. Bd5 {[%clk 0:00:45.5]} 42... Nd4+ {[%clk 0:01:23.8]} 43.
Ke3 {[%clk 0:00:44.5]} 43... f4+ {[%clk 0:01:20.6]} 44. Kd3 {[%clk 0:00:44.7]}
44... h5 {[%clk 0:01:21.5]} 45. Bc4 {[%clk 0:00:41.4]} 45... h4 {[%clk
0:01:19.2]} 46. b5 {[%clk 0:00:41.1]} 46... h3 {[%clk 0:01:19.8]} 47. b6 {[%clk
0:00:41.2]} 47... Nc6 {[%clk 0:01:17.8]} 0-1

[Event "Early-Titled-Tuesday-Blitz-October-03-2023"]
[Site "Chess.com"]
[Date "2023.10.03"]
[Round "4"]
[White "NaciSAN"]
[Black "Xqswdc"]
[Result "0-1"]
[WhiteElo "2122"]
[BlackElo "2308"]
[TimeControl "180+1"]
[EndTime "8:38:32 PDT"]
[Termination "Xqswdc won on time"]

1. e4 {[%clk 0:02:55.5]} 1... g6 {[%clk 0:03:00.9]} 2. d4 {[%clk 0:02:54.5]}
2... Bg7 {[%clk 0:03:01.8]} 3. Nc3 {[%clk 0:02:53.5]} 3... c6 {[%clk 0:02:59.7]}
4. Nf3 {[%clk 0:02:52.2]} 4... d5 {[%clk 0:03:00.1]} 5. h3 {[%clk 0:02:50.5]}
5... dxe4 {[%clk 0:02:56.1]} 6. Nxe4 {[%clk 0:02:50]} 6... Nd7 {[%clk
0:02:56.9]} 7. Bd3 {[%clk 0:02:46.6]} 7... Ngf6 {[%clk 0:02:56.8]} 8. O-O {[%clk
0:02:44.7]} 8... O-O {[%clk 0:02:57.2]} 9. Re1 {[%clk 0:02:37.6]} 9... Nxe4
{[%clk 0:02:56.8]} 10. Bxe4 {[%clk 0:02:37.5]} 10... Nf6 {[%clk 0:02:57.3]} 11.
Bd3 {[%clk 0:02:37.9]} 11... Be6 {[%clk 0:02:56.7]} 12. c4 {[%clk 0:02:36.9]}
12... Qa5 {[%clk 0:02:51.1]} 13. Bd2 {[%clk 0:02:32.8]} 13... Qh5 {[%clk
0:02:50.3]} 14. Bc3 {[%clk 0:02:29.5]} 14... Rfd8 {[%clk 0:02:46.9]} 15. Qe2
{[%clk 0:02:29.1]} 15... Bf8 {[%clk 0:02:36.3]} 16. Rad1 {[%clk 0:02:27.3]}
16... Bf5 {[%clk 0:02:35.6]} 17. Bxf5 {[%clk 0:01:55]} 17... Qxf5 {[%clk
0:02:36.3]} 18. Qe5 {[%clk 0:01:43.8]} 18... Qxe5 {[%clk 0:02:36.4]} 19. dxe5
{[%clk 0:01:43.7]} 19... Ne8 {[%clk 0:02:36.6]} 20. Ba5 {[%clk 0:01:30.6]} 20...
b6 {[%clk 0:02:36.3]} 21. Bd2 {[%clk 0:01:30.9]} 21... Nc7 {[%clk 0:02:36.4]}
22. Be3 {[%clk 0:01:28.3]} 22... Ne6 {[%clk 0:02:32.7]} 23. Nd4 {[%clk
0:01:17.7]} 23... Nxd4 {[%clk 0:02:30.8]} 24. Bxd4 {[%clk 0:01:18.6]} 24... e6
{[%clk 0:02:31]} 25. Be3 {[%clk 0:01:09.4]} 25... Bb4 {[%clk 0:02:31]} 26. Rf1
{[%clk 0:01:06.1]} 26... Kf8 {[%clk 0:02:29.2]} 27. f4 {[%clk 0:01:02.5]} 27...
Ke8 {[%clk 0:02:22.2]} 28. Kf2 {[%clk 0:01:02.5]} 28... Bc5 {[%clk 0:01:59.6]}
29. Bxc5 {[%clk 0:00:59]} 29... bxc5 {[%clk 0:02:00.5]} 30. Ke3 {[%clk
0:00:52.1]} 30... Ke7 {[%clk 0:01:56.5]} 31. g4 {[%clk 0:00:41.9]} 31... a5
{[%clk 0:01:55.9]} 32. Rd3 {[%clk 0:00:25.7]} 32... Rxd3+ {[%clk 0:01:55.2]} 33.
Kxd3 {[%clk 0:00:26.6]} 33... Rd8+ {[%clk 0:01:55.5]} 34. Kc3 {[%clk 0:00:26.2]}
34... Rd4 {[%clk 0:01:56.4]} 35. b3 {[%clk 0:00:19.8]} 35... f6 {[%clk
0:01:52.2]} 36. exf6+ {[%clk 0:00:17.2]} 36... Kxf6 {[%clk 0:01:53.1]} 37. a3
{[%clk 0:00:17.5]} 37... Re4 {[%clk 0:01:51.9]} 38. Kd3 {[%clk 0:00:17.4]} 38...
Rd4+ {[%clk 0:01:52.4]} 39. Ke3 {[%clk 0:00:12.2]} 39... h5 {[%clk 0:01:49.4]}
40. gxh5 {[%clk 0:00:09.7]} 40... gxh5 {[%clk 0:01:49.9]} 41. Rg1 {[%clk
0:00:07.3]} 41... Rd7 {[%clk 0:01:49.6]} 42. Rg8 {[%clk 0:00:06.7]} 42... Rb7
{[%clk 0:01:49.6]} 43. Ke4 {[%clk 0:00:05.3]} 43... Rxb3 {[%clk 0:01:49.7]} 44.
Rh8 {[%clk 0:00:06.2]} 44... Rc3 {[%clk 0:01:48.8]} 45. Rh6+ {[%clk 0:00:04.7]}
45... Ke7 {[%clk 0:01:49.1]} 46. Rxh5 {[%clk 0:00:04.5]} 46... Rxa3 {[%clk
0:01:49.7]} 47. Rh7+ {[%clk 0:00:03.6]} 47... Kd6 {[%clk 0:01:49.7]} 48. h4
{[%clk 0:00:02.7]} 48... Rh3 {[%clk 0:01:50.2]} 49. h5 {[%clk 0:00:02.8]} 49...
a4 {[%clk 0:01:50.3]} 0-1

[Event "Early-Titled-Tuesday-Blitz-October-03-2023"]
[Site "Chess.com"]
[Date "2023.10.03"]
[Round "4"]
[White "Mystery2007"]
[Black "meoluoi91"]
[Result "1-0"]
[WhiteElo "2483"]
[BlackElo "2624"]
[TimeControl "180+1"]
[EndTime "8:38:33 PDT"]
[Termination "Mystery2007 won by resignation"]

1. e4 {[%clk 0:03:00.9]} 1... c6 {[%clk 0:02:52.5]} 2. d4 {[%clk 0:03:00.1]}
2... d5 {[%clk 0:02:52.3]} 3. e5 {[%clk 0:02:59.8]} 3... g6 {[%clk 0:02:51.3]}
4. Nf3 {[%clk 0:02:50]} 4... Bg7 {[%clk 0:02:28.1]} 5. Be2 {[%clk 0:02:50.2]}
5... Bg4 {[%clk 0:02:21.6]} 6. Nbd2 {[%clk 0:02:42.6]} 6... Nh6 {[%clk
0:01:59.3]} 7. h3 {[%clk 0:02:41.2]} 7... Bf5 {[%clk 0:01:52.2]} 8. Nf1 {[%clk
0:02:36.7]} 8... Be4 {[%clk 0:01:45.3]} 9. Ng3 {[%clk 0:02:32.8]} 9... Bxf3
{[%clk 0:01:43.9]} 10. Bxf3 {[%clk 0:02:33.7]} 10... e6 {[%clk 0:01:43.3]} 11.
O-O {[%clk 0:02:31.2]} 11... Nf5 {[%clk 0:01:42.1]} 12. Nxf5 {[%clk 0:02:27.9]}
12... gxf5 {[%clk 0:01:42.1]} 13. Bh5 {[%clk 0:02:21.8]} 13... Qh4 {[%clk
0:01:35.9]} 14. f4 {[%clk 0:02:07.3]} 14... Bh6 {[%clk 0:01:27]} 15. Bd2 {[%clk
0:01:51.2]} 15... Rg8 {[%clk 0:01:25.9]} 16. Kh1 {[%clk 0:01:46.2]} 16... Qg3
{[%clk 0:01:18.2]} 17. Qf3 {[%clk 0:01:43.9]} 17... Qxf3 {[%clk 0:01:17.1]} 18.
Bxf3 {[%clk 0:01:41.4]} 18... Nd7 {[%clk 0:01:12.7]} 19. g4 {[%clk 0:01:36.1]}
19... fxg4 {[%clk 0:01:10.4]} 20. hxg4 {[%clk 0:01:37]} 20... O-O-O {[%clk
0:00:58.5]} 21. Rf2 {[%clk 0:01:35.5]} 21... Bf8 {[%clk 0:00:56.5]} 22. Rh2
{[%clk 0:01:32.6]} 22... c5 {[%clk 0:00:55.7]} 23. c3 {[%clk 0:01:30.7]} 23...
Rg7 {[%clk 0:00:55.2]} 24. Rg1 {[%clk 0:01:16]} 24... Nb6 {[%clk 0:00:52.3]} 25.
b3 {[%clk 0:01:05.8]} 25... cxd4 {[%clk 0:00:48.9]} 26. cxd4 {[%clk 0:01:06.3]}
26... Ba3 {[%clk 0:00:48.9]} 27. f5 {[%clk 0:01:00]} 27... Bb2 {[%clk
0:00:29.7]} 28. Bh6 {[%clk 0:00:55]} 28... Rgg8 {[%clk 0:00:28.7]} 29. Rxb2
{[%clk 0:00:53.1]} 29... Kb8 {[%clk 0:00:25.3]} 30. Rc2 {[%clk 0:00:49.4]} 1-0

[Event "Early-Titled-Tuesday-Blitz-October-03-2023"]
[Site "Chess.com"]
[Date "2023.10.03"]
[Round "4"]
[White "Taran2004"]
[Black "Dewarfd"]
[Result "0-1"]
[WhiteElo "2415"]
[BlackElo "2146"]
[TimeControl "180+1"]
[EndTime "8:38:33 PDT"]
[Termination "Dewarfd won by resignation"]

1. e4 {[%clk 0:03:00.9]} 1... e5 {[%clk 0:02:59.3]} 2. Nf3 {[%clk 0:03:01]} 2...
Nc6 {[%clk 0:02:58.9]} 3. d4 {[%clk 0:03:01.3]} 3... exd4 {[%clk 0:02:58.5]} 4.
Nxd4 {[%clk 0:03:02.2]} 4... Nf6 {[%clk 0:02:58.6]} 5. Nxc6 {[%clk 0:03:01.6]}
5... bxc6 {[%clk 0:02:58.9]} 6. e5 {[%clk 0:03:02]} 6... Qe7 {[%clk 0:02:57.5]}
7. Qe2 {[%clk 0:03:02.5]} 7... Nd5 {[%clk 0:02:57.2]} 8. h4 {[%clk 0:03:03.1]}
8... Qb4+ {[%clk 0:02:50.4]} 9. c3 {[%clk 0:03:00.5]} 9... Qe7 {[%clk
0:02:41.9]} 10. Bg5 {[%clk 0:02:57.4]} 10... f6 {[%clk 0:02:39.6]} 11. exf6
{[%clk 0:02:57]} 11... Qxe2+ {[%clk 0:02:37.6]} 12. Bxe2 {[%clk 0:02:57]} 12...
gxf6 {[%clk 0:02:31.6]} 13. Bd2 {[%clk 0:02:50.2]} 13... Rg8 {[%clk 0:02:31.6]}
14. g3 {[%clk 0:02:48.7]} 14... Bb7 {[%clk 0:02:30.8]} 15. Bf3 {[%clk
0:02:47.6]} 15... O-O-O {[%clk 0:02:30.8]} 16. O-O {[%clk 0:02:47.5]} 16... Bc5
{[%clk 0:02:28.5]} 17. Kg2 {[%clk 0:02:40]} 17... f5 {[%clk 0:02:24.5]} 18. c4
{[%clk 0:02:30.6]} 18... Nf6 {[%clk 0:02:19.5]} 19. Nc3 {[%clk 0:02:23.7]} 19...
Rde8 {[%clk 0:02:16.8]} 20. Bg5 {[%clk 0:02:17.3]} 20... Ne4 {[%clk 0:02:15.9]}
21. Nxe4 {[%clk 0:02:13.8]} 21... fxe4 {[%clk 0:02:15.8]} 22. Bh5 {[%clk
0:02:12.7]} 22... Ref8 {[%clk 0:02:05.2]} 23. Rfd1 {[%clk 0:02:01.7]} 23...
Rxf2+ {[%clk 0:01:56]} 24. Kh3 {[%clk 0:01:55.9]} 24... d6 {[%clk 0:01:43.8]}
25. a3 {[%clk 0:01:49.5]} 25... a5 {[%clk 0:01:43.1]} 26. b4 {[%clk 0:01:43.7]}
26... Bb6 {[%clk 0:01:37.8]} 27. bxa5 {[%clk 0:01:28.5]} 27... Bxa5 {[%clk
0:01:38.1]} 28. Be3 {[%clk 0:01:26]} 28... Rb2 {[%clk 0:01:30.3]} 29. Bg4+
{[%clk 0:01:15.3]} 29... Kb8 {[%clk 0:01:27.4]} 30. Rab1 {[%clk 0:01:15.2]}
30... Rxb1 {[%clk 0:01:27.3]} 31. Rxb1 {[%clk 0:01:16.1]} 31... Ka8 {[%clk
0:01:27.6]} 32. Rf1 {[%clk 0:01:16]} 32... Bc3 {[%clk 0:01:18.7]} 33. Rf7 {[%clk
0:01:12.7]} 33... Kb8 {[%clk 0:01:17.9]} 34. Rxh7 {[%clk 0:01:08.6]} 34... Be5
{[%clk 0:01:16.7]} 35. Bg5 {[%clk 0:01:04.2]} 35... e3 {[%clk 0:01:11.5]} 36.
Be6 {[%clk 0:01:03]} 36... Re8 {[%clk 0:01:08.9]} 37. Bf7 {[%clk 0:01:01.8]}
37... Re7 {[%clk 0:01:03.9]} 38. Bxe7 {[%clk 0:01:01.6]} 38... e2 {[%clk
0:00:56.1]} 0-1

[Event "Early-Titled-Tuesday-Blitz-October-03-2023"]
[Site "Chess.com"]
[Date "2023.10.03"]
[Round "4"]
[White "Murad_Ibrahimli"]
[Black "hurricane7791"]
[Result "1/2-1/2"]
[WhiteElo "2917"]
[BlackElo "2706"]
[TimeControl "180+1"]
[EndTime "8:38:37 PDT"]
[Termination "Game drawn by repetition"]

1. c4 {[%clk 0:03:00.9]} 1... c5 {[%clk 0:02:57.8]} 2. Nc3 {[%clk 0:03:01.5]}
2... Nc6 {[%clk 0:02:57.4]} 3. Nf3 {[%clk 0:03:02.2]} 3... g6 {[%clk 0:02:57.1]}
4. g3 {[%clk 0:03:02.4]} 4... Bg7 {[%clk 0:02:57.4]} 5. Bg2 {[%clk 0:03:03.1]}
5... d6 {[%clk 0:02:57.5]} 6. d3 {[%clk 0:03:03.8]} 6... e6 {[%clk 0:02:57.9]}
7. Qd2 {[%clk 0:03:03.5]} 7... Qd7 {[%clk 0:02:56.7]} 8. b3 {[%clk 0:03:03.7]}
8... b6 {[%clk 0:02:57.3]} 9. Bb2 {[%clk 0:03:04.4]} 9... Bb7 {[%clk 0:02:57.3]}
10. O-O {[%clk 0:03:03.7]} 10... Nge7 {[%clk 0:02:57.6]} 11. Ne4 {[%clk
0:03:01]} 11... e5 {[%clk 0:02:58.1]} 12. e3 {[%clk 0:02:40.5]} 12... d5 {[%clk
0:02:55.3]} 13. cxd5 {[%clk 0:02:39.7]} 13... Nxd5 {[%clk 0:02:55.8]} 14. Rfd1
{[%clk 0:02:37.1]} 14... f5 {[%clk 0:02:40.4]} 15. Nc3 {[%clk 0:02:34.9]} 15...
Nxc3 {[%clk 0:02:40.5]} 16. Bxc3 {[%clk 0:02:35.8]} 16... O-O {[%clk 0:02:40]}
17. Qb2 {[%clk 0:02:36.5]} 17... Rfe8 {[%clk 0:02:40.1]} 18. a3 {[%clk
0:02:35.8]} 18... a5 {[%clk 0:02:37.6]} 19. Nd2 {[%clk 0:02:36.1]} 19... Rad8
{[%clk 0:02:32.6]} 20. Nc4 {[%clk 0:02:36.2]} 20... Qc7 {[%clk 0:02:33.2]} 21.
a4 {[%clk 0:02:33.6]} 21... Nb4 {[%clk 0:02:13.9]} 22. Bxb7 {[%clk 0:02:31.4]}
22... Qxb7 {[%clk 0:02:14.2]} 23. Bxb4 {[%clk 0:02:32.3]} 23... axb4 {[%clk
0:02:12.4]} 24. Rac1 {[%clk 0:02:32.5]} 24... e4 {[%clk 0:02:12.2]} 25. Qe2
{[%clk 0:02:32.7]} 25... b5 {[%clk 0:01:59.9]} 26. axb5 {[%clk 0:02:31]} 26...
Qxb5 {[%clk 0:02:00.5]} 27. dxe4 {[%clk 0:02:31.2]} 27... fxe4 {[%clk 0:02:01]}
28. Rxd8 {[%clk 0:02:28.6]} 28... Rxd8 {[%clk 0:02:00.9]} 29. Rd1 {[%clk
0:02:29]} 29... Qe8 {[%clk 0:01:57.7]} 30. Qc2 {[%clk 0:02:28.5]} 30... Rxd1+
{[%clk 0:01:55.7]} 31. Qxd1 {[%clk 0:02:29.4]} 31... Qe6 {[%clk 0:01:55.7]} 32.
Qd8+ {[%clk 0:02:28.6]} 32... Bf8 {[%clk 0:01:56.3]} 33. Kg2 {[%clk 0:02:26.9]}
33... h5 {[%clk 0:01:56.8]} 34. h3 {[%clk 0:02:26.4]} 34... Kf7 {[%clk
0:01:57.1]} 35. Qc7+ {[%clk 0:02:24.8]} 35... Be7 {[%clk 0:01:57.4]} 36. Qf4+
{[%clk 0:02:22.6]} 36... Kg7 {[%clk 0:01:54]} 37. g4 {[%clk 0:02:11]} 37... hxg4
{[%clk 0:01:50.8]} 38. hxg4 {[%clk 0:02:11.9]} 38... Bf6 {[%clk 0:01:45.4]} 39.
Qc7+ {[%clk 0:02:10]} 39... Be7 {[%clk 0:01:45.4]} 40. Kg3 {[%clk 0:01:59.4]}
40... Kf6 {[%clk 0:01:37.3]} 41. Kh3 {[%clk 0:01:48.1]} 41... Kg7 {[%clk
0:01:33.5]} 42. Qe5+ {[%clk 0:01:45.8]} 42... Qxe5 {[%clk 0:01:33]} 43. Nxe5
{[%clk 0:01:46.7]} 43... Kf6 {[%clk 0:01:30.3]} 44. Nc4 {[%clk 0:01:47.3]} 44...
Bd8 {[%clk 0:01:28.5]} 45. f4 {[%clk 0:01:42.5]} 45... exf3 {[%clk 0:01:24]} 46.
Kg3 {[%clk 0:01:42.6]} 46... Ke6 {[%clk 0:01:20.7]} 47. Kxf3 {[%clk 0:01:43]}
47... Kd5 {[%clk 0:01:21.2]} 48. Kf4 {[%clk 0:01:41.1]} 48... Bf6 {[%clk
0:01:19.1]} 49. Kf3 {[%clk 0:01:00.3]} 49... Bd8 {[%clk 0:01:16.5]} 50. Kf4
{[%clk 0:00:59.9]} 50... Bf6 {[%clk 0:01:16.6]} 51. Kf3 {[%clk 0:00:42]} 51...
Bd8 {[%clk 0:01:15.4]} 1/2-1/2

[Event "Early-Titled-Tuesday-Blitz-October-03-2023"]
[Site "Chess.com"]
[Date "2023.10.03"]
[Round "4"]
[White "TatjanaVasilevich"]
[Black "abc_xyz4744"]
[Result "1-0"]
[WhiteElo "2588"]
[BlackElo "2408"]
[TimeControl "180+1"]
[EndTime "8:38:40 PDT"]
[Termination "TatjanaVasilevich won by checkmate"]

1. Nf3 {[%clk 0:03:00.9]} 1... d5 {[%clk 0:02:51.5]} 2. b3 {[%clk 0:03:00.1]}
2... Nf6 {[%clk 0:02:47.9]} 3. Bb2 {[%clk 0:02:59.9]} 3... c6 {[%clk 0:02:47.9]}
4. g3 {[%clk 0:02:59.8]} 4... Bf5 {[%clk 0:02:47.9]} 5. Bg2 {[%clk 0:03:00.2]}
5... h6 {[%clk 0:02:47.8]} 6. c4 {[%clk 0:03:00.7]} 6... e6 {[%clk 0:02:48.1]}
7. O-O {[%clk 0:03:01]} 7... e5 {[%clk 0:02:49]} 8. Nxe5 {[%clk 0:03:00.9]} 8...
Bd6 {[%clk 0:02:49]} 9. d3 {[%clk 0:03:00.3]} 9... O-O {[%clk 0:02:48.8]} 10.
Nf3 {[%clk 0:02:59]} 10... Re8 {[%clk 0:02:48.8]} 11. Nc3 {[%clk 0:02:59.6]}
11... Qe7 {[%clk 0:02:47.3]} 12. Re1 {[%clk 0:02:59.3]} 12... Nbd7 {[%clk
0:02:41]} 13. e4 {[%clk 0:02:48.3]} 13... dxe4 {[%clk 0:02:38.4]} 14. dxe4
{[%clk 0:02:48.9]} 14... Bg4 {[%clk 0:02:39]} 15. h3 {[%clk 0:02:47.7]} 15...
Bh5 {[%clk 0:02:20.2]} 16. Qd2 {[%clk 0:02:36.8]} 16... Rad8 {[%clk 0:02:06.5]}
17. Rad1 {[%clk 0:02:28.8]} 17... Ne5 {[%clk 0:01:48.3]} 18. Qe2 {[%clk
0:02:20.3]} 18... Qe6 {[%clk 0:01:41.6]} 19. g4 {[%clk 0:01:59.5]} 19... Bg6
{[%clk 0:01:31]} 20. Nd4 {[%clk 0:01:53.3]} 20... Qc8 {[%clk 0:01:30.1]} 21. f4
{[%clk 0:01:44.7]} 21... Bc5 {[%clk 0:01:26.2]} 22. Na4 {[%clk 0:01:41.3]} 22...
Ned7 {[%clk 0:01:07.8]} 23. e5 {[%clk 0:01:39.5]} 23... Kh8 {[%clk 0:00:45.8]}
24. Qf2 {[%clk 0:01:32.6]} 24... Ng8 {[%clk 0:00:40.3]} 25. f5 {[%clk
0:01:32.7]} 25... Bh7 {[%clk 0:00:40.5]} 26. Nxc5 {[%clk 0:01:25.8]} 26... Nxc5
{[%clk 0:00:41.4]} 27. Ba3 {[%clk 0:01:26.5]} 27... b6 {[%clk 0:00:39.6]} 28.
Nxc6 {[%clk 0:01:24.3]} 28... Rxd1 {[%clk 0:00:38.2]} 29. Rxd1 {[%clk
0:01:24.5]} 29... Ne7 {[%clk 0:00:38.2]} 30. Nxe7 {[%clk 0:01:24.2]} 30... Rxe7
{[%clk 0:00:39.1]} 31. Bb2 {[%clk 0:01:12.9]} 31... Rd7 {[%clk 0:00:37.3]} 32.
Bd5 {[%clk 0:01:09.5]} 32... Bg8 {[%clk 0:00:29.3]} 33. Qf4 {[%clk 0:01:05]}
33... Qc7 {[%clk 0:00:27.2]} 34. f6 {[%clk 0:01:04]} 34... Ne6 {[%clk
0:00:20.5]} 35. fxg7+ {[%clk 0:01:03]} 35... Kxg7 {[%clk 0:00:20.4]} 36. Qf6+
{[%clk 0:01:02.6]} 36... Kh7 {[%clk 0:00:20.5]} 37. Be4# {[%clk 0:01:02.3]} 1-0

[Event "Early-Titled-Tuesday-Blitz-October-03-2023"]
[Site "Chess.com"]
[Date "2023.10.03"]
[Round "4"]
[White "SashaKuzhilniy"]
[Black "pasteta13"]
[Result "1-0"]
[WhiteElo "2614"]
[BlackElo "2422"]
[TimeControl "180+1"]
[EndTime "8:38:41 PDT"]
[Termination "SashaKuzhilniy won by resignation"]

1. b3 {[%clk 0:03:00.9]} 1... Nf6 {[%clk 0:02:59.4]} 2. Bb2 {[%clk 0:03:01.5]}
2... e6 {[%clk 0:03:00.3]} 3. Nf3 {[%clk 0:03:01.3]} 3... d5 {[%clk 0:03:01]} 4.
e3 {[%clk 0:03:01.1]} 4... c5 {[%clk 0:03:01.5]} 5. c4 {[%clk 0:03:01.4]} 5...
Nc6 {[%clk 0:03:01.2]} 6. cxd5 {[%clk 0:03:01.6]} 6... exd5 {[%clk 0:03:01.6]}
7. d4 {[%clk 0:03:02]} 7... cxd4 {[%clk 0:02:58.8]} 8. Nxd4 {[%clk 0:03:02.7]}
8... Bb4+ {[%clk 0:02:56.8]} 9. Bc3 {[%clk 0:03:03.1]} 9... Qa5 {[%clk
0:02:51.5]} 10. Bxb4 {[%clk 0:02:53.8]} 10... Qxb4+ {[%clk 0:02:45.1]} 11. Qd2
{[%clk 0:02:54]} 11... Nxd4 {[%clk 0:02:44.4]} 12. exd4 {[%clk 0:02:54.5]} 12...
a5 {[%clk 0:02:27.7]} 13. Bd3 {[%clk 0:02:35.6]} 13... O-O {[%clk 0:02:17]} 14.
O-O {[%clk 0:02:34.3]} 14... Ne4 {[%clk 0:02:17.4]} 15. Bxe4 {[%clk 0:02:10.3]}
15... dxe4 {[%clk 0:02:15.1]} 16. Nc3 {[%clk 0:02:09.1]} 16... Rd8 {[%clk
0:02:04.2]} 17. Rad1 {[%clk 0:01:52.1]} 17... Bf5 {[%clk 0:01:55.5]} 18. Rfe1
{[%clk 0:01:46.5]} 18... Rac8 {[%clk 0:01:36.5]} 19. Re3 {[%clk 0:01:16.3]}
19... Bg4 {[%clk 0:01:25.9]} 20. f3 {[%clk 0:00:50.6]} 20... exf3 {[%clk
0:01:26]} 21. gxf3 {[%clk 0:00:51.5]} 21... Bf5 {[%clk 0:01:20.9]} 22. Ne4
{[%clk 0:00:51.3]} 22... Qe7 {[%clk 0:00:52.5]} 23. Ng3 {[%clk 0:00:41.7]} 23...
Be6 {[%clk 0:00:35.2]} 24. Qxa5 {[%clk 0:00:28.7]} 24... Rd5 {[%clk 0:00:32]}
25. Qxd5 {[%clk 0:00:28]} 1-0

[Event "Early-Titled-Tuesday-Blitz-October-03-2023"]
[Site "Chess.com"]
[Date "2023.10.03"]
[Round "4"]
[White "UNSTOPPABLE_LEGEND"]
[Black "Mackster23"]
[Result "1/2-1/2"]
[WhiteElo "2449"]
[BlackElo "2620"]
[TimeControl "180+1"]
[EndTime "8:38:42 PDT"]
[Termination "Game drawn by repetition"]

1. d4 {[%clk 0:03:00.9]} 1... Nf6 {[%clk 0:02:59.8]} 2. c4 {[%clk 0:03:00.6]}
2... g6 {[%clk 0:03:00.3]} 3. Nc3 {[%clk 0:03:00.4]} 3... Bg7 {[%clk 0:03:00.7]}
4. e4 {[%clk 0:03:00.4]} 4... O-O {[%clk 0:03:01.3]} 5. h3 {[%clk 0:02:58.7]}
5... d6 {[%clk 0:03:01.4]} 6. Be3 {[%clk 0:02:59.1]} 6... e5 {[%clk 0:03:00.4]}
7. d5 {[%clk 0:02:59.4]} 7... a5 {[%clk 0:03:00.9]} 8. g4 {[%clk 0:02:58.8]}
8... Na6 {[%clk 0:03:01.6]} 9. Nge2 {[%clk 0:02:59]} 9... Nc5 {[%clk 0:02:58.8]}
10. Ng3 {[%clk 0:02:59.1]} 10... Nfd7 {[%clk 0:02:53.1]} 11. Qd2 {[%clk
0:02:51]} 11... Nb6 {[%clk 0:02:52.3]} 12. O-O-O {[%clk 0:02:50]} 12... a4
{[%clk 0:02:48.6]} 13. Be2 {[%clk 0:02:48.3]} 13... f6 {[%clk 0:02:29.7]} 14. h4
{[%clk 0:02:47.8]} 14... Rf7 {[%clk 0:02:28.8]} 15. Rdg1 {[%clk 0:02:44.7]}
15... Qf8 {[%clk 0:02:02.3]} 16. f4 {[%clk 0:02:39.7]} 16... exf4 {[%clk
0:02:00]} 17. Bxf4 {[%clk 0:02:40.6]} 17... a3 {[%clk 0:01:58.5]} 18. b3 {[%clk
0:02:39]} 18... Bd7 {[%clk 0:01:37.3]} 19. h5 {[%clk 0:02:38.7]} 19... Re8
{[%clk 0:01:28.1]} 20. Bf3 {[%clk 0:02:32.8]} 20... Rfe7 {[%clk 0:01:09.4]} 21.
hxg6 {[%clk 0:01:27.4]} 21... hxg6 {[%clk 0:01:09.3]} 22. Qh2 {[%clk 0:01:16.5]}
22... Nd3+ {[%clk 0:01:03.6]} 23. Kd2 {[%clk 0:01:11.2]} 23... Nxf4 {[%clk
0:01:04.5]} 24. Nf5 {[%clk 0:01:10.6]} 24... Bxf5 {[%clk 0:00:59.3]} 25. gxf5
{[%clk 0:01:01.5]} 25... g5 {[%clk 0:00:57.5]} 26. Qh7+ {[%clk 0:01:00.4]} 26...
Kf7 {[%clk 0:00:57.5]} 27. Bh5+ {[%clk 0:00:51.1]} 27... Nxh5 {[%clk 0:00:57.3]}
28. Qxh5+ {[%clk 0:00:46.9]} 28... Kg8 {[%clk 0:00:57.4]} 29. Qh7+ {[%clk
0:00:32.8]} 29... Kf7 {[%clk 0:00:57.7]} 30. Qg6+ {[%clk 0:00:15]} 30... Kg8
{[%clk 0:00:57.6]} 31. Qh7+ {[%clk 0:00:08.1]} 31... Kf7 {[%clk 0:00:57.8]} 32.
Qg6+ {[%clk 0:00:09]} 32... Kg8 {[%clk 0:00:58.2]} 33. Qh7+ {[%clk 0:00:09.9]}
1/2-1/2